bitfinex/quotes_ETHUSD_20260310
["timestamp","ask_amount","ask_price","bid_price","bid_amount"]
[1773137267627,0.001,2067.7,2066.9,0.46866116]
[1773137268130,1.21007553,2067.7,2066.9,0.46866116]
[1773137268325,0.001,2067.7,2066.9,0.46866116]
[1773137268731,0.001,2067.7,2067.1,0.36298029]
[1773137271102,0.001,2067.7,2067.2,1.20936532]
[1773137273341,0.4837852,2067.7,2067.1,1.57237362]
[1773137273498,0.4837852,2067.7,2067.3,0.0011]
[1773137273704,0.001,2067.5,2067.3,0.0011]
[1773137276417,0.4837852,2067.5,2067.3,0.0011]
[1773137277505,1.6930131,2067.5,2067.3,0.0011]
[1773137278613,0.4827852,2067.4,2067.0,0.0011]
[1773137279009,0.4827852,2067.4,2067.0,1.21057708]
[1773137279611,1.21021128,2067.5,2067.0,1.5735573]
[1773137279824,1.21021128,2067.5,2067.1,0.36298022]
[1773137280327,1.69299648,2067.5,2067.1,0.36298022]
[1773137280950,0.4827852,2067.4,2067.0,0.0011]
[1773137281323,0.4827852,2067.2,2066.8,0.0011]
[1773137281723,1.20942383,2067.1,2066.8,0.0011]
[1773137282057,0.4827852,2067.0,2066.8,0.0011]
[1773137282208,0.4827852,2067.0,2066.5,0.36298021]
[1773137283269,0.4827852,2067.0,2066.5,1.57272347]
[1773137283550,1.20942383,2067.1,2066.6,0.3629802]
[1773137283957,0.48843571,2067.1,2066.6,0.3629802]
[1773137285043,0.48843571,2067.1,2066.4,0.36298018]
[1773137285218,0.48843571,2067.0,2066.4,0.36298018]
[1773137285422,0.48843571,2067.0,2066.4,1.5728077]
[1773137285917,0.48843571,2066.7,2066.5,0.0011]
[1773137286121,0.48843571,2066.7,2066.0,0.36298018]
[1773137286319,0.48843571,2066.7,2066.3,0.0011]
[1773137287917,1.69797656,2066.9,2066.3,1.57395328]
[1773137288345,0.48843571,2066.8,2066.3,0.36408017]
[1773137288850,0.48843571,2066.8,2066.3,1.57397103]
[1773137289648,0.48843571,2066.8,2066.3,0.0011]
[1773137290329,1.69809361,2066.7,2066.3,0.0011]
[1773137292367,0.48843571,2066.6,2066.3,0.0011]
[1773137295169,1.69796048,2067.0,2066.4,0.36298014]
[1773137295462,0.48843571,2066.9,2066.4,0.36298014]
[1773137295693,0.48843571,2066.9,2066.3,0.0011]
[1773137297460,0.48843571,2066.7,2066.3,0.0011]
[1773137297837,0.48843571,2066.7,2066.5,0.0011]
[1773137298578,0.48843571,2066.7,2066.3,0.0011]
[1773137299144,0.48843571,2066.3,2066.0,0.0011]
[1773137299354,0.48843571,2066.1,2066.0,0.0011]
[1773137301041,0.48843571,2066.1,2065.6,0.0011]
[1773137301246,0.48843571,2066.0,2065.0,1.21065375]
[1773137301475,0.48843571,2065.8,2064.7,0.36408011]
[1773137301648,0.48843571,2065.7,2064.7,0.36408011]
[1773137303885,1.6985502,2066.0,2064.9,0.3640801]
[1773137304086,0.48843571,2065.9,2064.9,0.3640801]
[1773137304451,0.48843571,2065.8,2064.9,0.3640801]
[1773137306486,0.48843571,2065.6,2065.0,1.21065375]
[1773137307074,0.48843571,2065.6,2064.8,1.21072427]
[1773137307075,0.48843571,2065.5,2064.8,1.21072427]
[1773137307484,2.34455468,2065.3,2064.7,0.36408009]
[1773137307787,0.48843571,2065.2,2064.6,1.57496288]
[1773137307977,0.48843571,2065.2,2064.6,1.2108828]
[1773137308886,0.48843571,2065.0,2064.5,0.36408008]
[1773137309491,0.48843571,2065.0,2064.1,1.21118162]
[1773137309698,0.48843571,2065.0,2064.2,0.36408007]
[1773137310558,1.21059512,2065.1,2064.9,0.0011]
[1773137311067,0.48843571,2065.0,2064.6,1.21193881]
[1773137311267,0.48843571,2065.0,2064.6,0.0011]
[1773137312371,0.48843571,2065.2,2064.7,0.36408006]
[1773137312889,1.21059512,2065.1,2064.6,0.0011]
[1773137313092,0.48843571,2065.0,2064.3,0.36408006]
[1773137313387,0.48843571,2065.0,2064.2,0.36408006]
[1773137313687,3.55819837,2065.1,2064.2,0.36408006]
[1773137313688,0.45051183,2064.8,2064.2,0.36408006]
[1773137313862,2.34760325,2064.3,2062.4,1.45458028]
[1773137314058,2.34760325,2064.6,2062.8,0.36408006]
[1773137314059,0.45051183,2063.8,2062.8,0.36408006]
[1773137314496,0.45051183,2064.1,2062.9,0.36408005]
[1773137315195,0.45051183,2063.9,2063.1,0.36408005]
[1773137317295,0.45051183,2063.8,2063.2,1.57579001]
[1773137317496,0.45051183,2063.8,2063.3,0.36408004]
[1773137317801,0.45051183,2064.2,2063.3,0.36408004]
[1773137319475,0.45051183,2064.0,2063.4,1.21159251]
[1773137320884,0.45051183,2064.0,2063.5,0.36408003]
[1773137321202,0.45051183,2064.2,2063.5,0.36408003]
[1773137321501,0.45051183,2064.1,2063.6,1.21147509]
[1773137321999,0.45051183,2064.1,2063.2,0.36408003]
[1773137322201,0.45051183,2064.1,2063.3,1.21164652]
[1773137322379,0.45051183,2064.1,2063.2,1.57575568]
[1773137322793,0.45051183,2063.9,2063.2,1.57575568]
[1773137325592,0.45051183,2063.9,2063.3,0.36408002]
[1773137325909,0.001,2064.0,2063.3,0.36408002]
[1773137327379,0.001,2064.0,2063.5,0.36408001]
[1773137329916,0.4584221,2064.8,2063.7,0.36308]
[1773137331619,0.4584221,2064.6,2063.7,0.36308]
[1773137331993,1.21094696,2064.5,2063.8,1.21135768]
[1773137332202,0.4584221,2064.4,2063.8,1.21135768]
[1773137333036,0.4584221,2064.4,2063.6,1.21142689]
[1773137333320,0.4584221,2064.3,2063.3,0.36307999]
[1773137334195,0.4584221,2064.3,2063.5,0.36307999]
[1773137334589,0.4584221,2064.3,2063.5,0.31307999]
[1773137334789,0.4584221,2064.3,2063.5,0.31417999]
[1773137335218,0.001,2064.1,2063.5,0.31417999]
[1773137336623,0.001,2064.1,2063.6,1.21147509]
[1773137336920,0.001,2064.1,2063.6,1.52455507]
[1773137338022,0.4594221,2064.1,2063.6,1.21147509]
[1773137338223,0.4594221,2064.1,2063.6,1.52455507]
[1773137339126,0.4594221,2064.1,2063.6,1.21147509]
[1773137339694,0.4594221,2064.1,2063.5,4.84700036]
[1773137339695,0.4584221,2064.0,2063.5,1.21262588]
[1773137340100,0.4584221,2064.0,2063.5,1.52570585]
[1773137340932,0.001,2064.1,2063.6,0.31307997]
[1773137343529,0.001,2064.1,2063.7,1.21141638]
[1773137343834,1.7089946,2064.6,2063.8,0.31307996]
[1773137344004,1.7089821,2064.6,2063.8,0.31307996]
[1773137344328,0.49808232,2064.5,2063.8,0.31307996]
[1773137345399,0.49808232,2064.3,2063.9,1.21129899]
[1773137347405,1.70907678,2064.5,2063.9,1.21129899]
[1773137347601,0.49808232,2065.0,2064.0,0.31207995]
[1773137348534,0.49808232,2065.0,2064.0,0.31317995]
[1773137348709,0.001,2064.3,2064.0,0.31317995]
[1773137349533,4.84258214,2065.1,2064.2,1.5232029]
[1773137349534,0.49808232,2064.9,2064.2,1.5232029]
[1773137350426,1.70870469,2065.1,2064.4,0.31207994]
[1773137350630,0.49808232,2065.1,2064.4,0.31207994]
[1773137351532,1.70872802,2065.1,2064.5,1.21094696]
[1773137352006,1.2106457,2065.1,2064.5,1.21094696]
[1773137352211,0.49808232,2065.0,2064.5,1.21094696]
[1773137353150,0.49808232,2065.0,2064.0,1.52436156]
[1773137353353,0.49808232,2065.0,2064.2,0.31207994]
[1773137354055,1.21070293,2065.0,2064.3,1.21106428]
[1773137354246,0.49808232,2064.9,2064.3,1.21106428]
[1773137356043,1.21077101,2064.8,2064.1,1.21118162]
[1773137356231,0.49808232,2064.7,2064.1,1.21118162]
[1773137356955,0.49808232,2065.4,2064.2,0.31207993]
[1773137358945,0.49808232,2065.3,2064.5,0.31207993]
[1773137360630,0.49808232,2065.3,2064.3,1.5231442]
[1773137361034,0.49808232,2065.1,2064.3,1.21106428]
[1773137362237,0.5,2064.9,2064.5,0.0011]
[1773137362561,0.49808232,2064.8,2064.5,0.0011]
[1773137366458,0.49808232,2064.7,2064.3,0.0011]
[1773137367847,0.49808232,2064.9,2064.3,0.31427991]
[1773137368659,1.21074552,2064.9,2064.3,0.0011]
[1773137368846,0.49808232,2064.8,2064.3,0.0011]
[1773137370045,0.49808232,2064.8,2064.3,0.37895101]
[1773137370646,0.49808232,2064.8,2064.3,0.0011]
[1773137370862,0.49808232,2065.0,2064.3,0.378951]
[1773137373950,0.001,2065.1,2064.3,0.378951]
[1773137373951,0.001,2065.1,2064.5,0.377851]
[1773137376451,0.4540007,2065.1,2064.7,0.0011]
[1773137376763,0.001,2064.9,2064.7,0.0011]
[1773137380979,0.4540007,2064.9,2064.7,0.0011]
[1773137381280,0.001,2065.1,2064.7,0.45370643]
[1773137381456,0.4530007,2065.3,2064.8,0.45260643]
[1773137382775,0.4530007,2065.3,2064.9,1.21071238]
[1773137384676,0.4530007,2065.2,2064.7,0.0011]
[1773137386677,0.4530007,2065.2,2064.7,0.453923]
[1773137386883,0.48253599,2065.4,2064.7,0.453923]
[1773137389583,0.48253599,2065.9,2064.9,0.452823]
[1773137390191,0.001,2065.0,2064.9,0.452823]
[1773137390384,0.48253599,2065.6,2064.9,0.452823]
[1773137391888,0.48253599,2065.5,2065.0,1.21065375]
[1773137394599,4.84097682,2065.7,2065.0,1.21065375]
[1773137394798,0.48253599,2065.5,2065.0,1.21065375]
[1773137395097,0.48253599,2065.5,2064.9,1.21067917]
[1773137396694,0.48253599,2065.3,2064.9,1.21067917]
[1773137397015,0.48253599,2065.3,2064.8,1.21077101]
[1773137397502,0.48253599,2065.3,2064.8,1.66359401]
[1773137398210,0.48253599,2065.3,2064.8,1.21077101]
[1773137398495,0.48253599,2065.3,2064.8,1.66359401]
[1773137399600,0.48253599,2065.5,2064.8,1.21077101]
[1773137400836,0.5,2065.3,2064.8,1.21077101]
[1773137401104,0.48253599,2065.2,2064.8,1.21077101]
[1773137402100,0.48253599,2065.2,2065.0,0.0011]
[1773137403517,0.46435132,2065.6,2065.0,0.48730676]
[1773137403675,0.46435132,2065.4,2065.0,0.48730676]
[1773137404013,0.46435132,2065.4,2065.0,0.0011]
[1773137405613,0.46435132,2065.6,2065.0,0.48730676]
[1773137407623,0.46435132,2065.6,2065.1,1.21059512]
[1773137407986,0.46435132,2065.6,2065.1,1.69680188]
[1773137408490,0.46435132,2065.6,2065.2,0.48620676]
[1773137408916,0.46535132,2065.7,2065.2,0.48620676]
[1773137409621,0.46535132,2065.7,2065.3,1.21047789]
[1773137410425,0.46535132,2066.1,2065.5,0.48620676]
[1773137411724,0.46535132,2066.1,2065.6,1.21030209]
[1773137411913,0.46435132,2066.0,2065.6,1.21030209]
[1773137415925,0.46435132,2065.9,2065.1,0.48620676]
[1773137416123,0.46435132,2065.7,2065.2,0.48620676]
[1773137416326,0.46435132,2065.7,2065.2,0.48730676]
[1773137417428,0.46535132,2065.8,2065.2,0.48730676]
[1773137418727,0.46535132,2065.8,2065.3,1.21047789]
[1773137418932,0.46535132,2065.8,2065.3,1.69668465]
[1773137421815,1.21120109,2065.8,2065.3,1.69668465]
[1773137422014,0.46435132,2065.7,2065.3,1.69668465]
[1773137423918,0.001,2065.8,2065.4,0.48620676]
[1773137424120,0.46535132,2065.8,2065.4,0.48620676]
[1773137425313,0.46535132,2065.8,2065.3,1.21047789]
[1773137425949,0.46435132,2065.7,2065.3,1.21047789]
[1773137427131,0.46435132,2065.6,2065.3,1.21047789]
[1773137427707,0.46535132,2065.8,2065.3,1.69668465]
[1773137428323,0.46535132,2065.8,2065.3,1.21047789]
[1773137429138,0.46535132,2065.8,2065.5,0.0011]
[1773137429646,0.46535132,2065.6,2065.5,0.0011]
[1773137429814,0.001,2065.6,2065.5,0.0011]
[1773137431038,0.46535132,2065.6,2065.4,1.21036789]
[1773137432450,0.46435132,2065.5,2065.3,0.0011]
[1773137434813,0.001,2065.6,2065.4,0.47611577]
[1773137437755,0.001,2065.6,2065.4,1.68648672]
[1773137438619,0.001,2065.6,2065.5,0.47611577]
[1773137439364,0.001,2065.6,2065.4,1.21037095]
[1773137439565,0.001,2065.6,2065.5,0.47611577]
[1773137439733,0.45513316,2065.8,2065.6,1.21030209]
[1773137441647,0.001,2065.8,2065.6,0.47611577]
[1773137441850,0.001,2065.8,2065.6,1.68640932]
[1773137442239,0.001,2065.8,2065.6,1.21029355]
[1773137443156,0.001,2065.8,2065.6,1.68640932]
[1773137443347,0.001,2066.1,2065.7,0.47611577]
[1773137443748,0.001,2066.1,2065.9,1.21012633]
[1773137443935,0.001,2066.1,2065.9,1.6862421]
[1773137444643,0.45413316,2066.0,2065.5,0.47721577]
[1773137444848,0.47588828,2065.9,2065.5,0.0011]
[1773137445842,0.47588828,2065.8,2065.5,0.0011]
[1773137447859,1.68608039,2065.8,2065.5,0.0011]
[1773137448062,0.47588828,2065.7,2065.5,0.0011]
[1773137452276,0.47588828,2065.5,2065.2,0.0011]
[1773137452463,1.68613222,2065.7,2065.3,0.45075596]
[1773137452661,0.47588828,2065.6,2065.2,0.0011]
[1773137452860,0.47588828,2065.6,2065.2,1.2116229]
[1773137453270,0.47588828,2065.6,2065.2,1.66237886]
[1773137454482,0.47588828,2065.6,2065.3,0.45075596]
[1773137455181,0.47588828,2065.8,2065.3,0.45075596]
[1773137455560,0.47588828,2065.9,2065.5,0.45075596]
[1773137456768,1.68602205,2065.9,2065.5,0.45075596]
[1773137456975,0.47588828,2065.8,2065.4,1.2114834]
[1773137458462,0.47588828,2065.8,2065.4,1.66223936]
[1773137459057,0.47588828,2065.7,2065.4,1.2114834]
[1773137460181,0.47588828,2065.7,2065.4,0.0011]
[1773137460570,0.47588828,2065.7,2065.4,1.21151834]
[1773137460771,0.47588828,2065.9,2065.5,0.45075596]
[1773137461279,0.47588828,2065.8,2065.5,0.45075596]
[1773137461983,0.47588828,2065.8,2065.4,1.6622743]
[1773137462278,0.47588828,2065.8,2065.5,0.45075596]
[1773137463687,0.47588828,2065.8,2065.5,1.66107105]
[1773137467697,0.47588828,2065.8,2065.7,0.0011]
[1773137473289,0.48377192,2066.0,2065.7,0.49178596]
[1773137473489,0.001,2066.1,2065.7,0.49178596]
[1773137473861,1.21101052,2066.1,2065.7,0.49178596]
[1773137474061,0.48477192,2066.1,2065.7,0.49178596]
[1773137475367,0.48477192,2066.1,2065.8,1.21018491]
[1773137475597,0.48477192,2066.1,2065.8,1.70087087]
[1773137476802,0.001,2066.1,2065.9,0.49068596]
[1773137480207,0.001,2066.1,2065.7,0.0011]
[1773137480413,0.48477192,2066.1,2065.7,0.49178596]
[1773137480911,0.001,2065.9,2065.7,0.49178596]
[1773137481088,0.48477192,2066.1,2065.7,0.49178596]
[1773137481905,0.48477192,2066.1,2065.7,0.0011]
[1773137482332,0.48377192,2066.0,2065.7,0.0011]
[1773137483114,0.48377192,2066.0,2065.7,0.49178596]
[1773137483819,0.48377192,2066.0,2065.7,0.0011]
[1773137483998,0.48377192,2065.9,2065.5,0.0011]
[1773137484513,0.48377192,2065.7,2065.5,0.0011]
[1773137485895,0.48377192,2065.7,2065.4,0.0011]
[1773137486605,1.69407401,2065.6,2065.4,0.0011]
[1773137486807,0.48377192,2065.5,2065.4,0.0011]
[1773137490510,1.6941326,2065.5,2065.4,0.0011]
[1773137491018,0.48377192,2065.4,2065.2,0.0011]
[1773137491713,1.69411682,2065.6,2065.2,0.0011]
[1773137491888,0.48377192,2065.5,2065.2,0.0011]
[1773137492317,0.48377192,2065.5,2065.4,0.0011]
[1773137493421,1.6941326,2065.5,2065.4,0.0011]
[1773137494419,0.45399739,2065.4,2065.2,0.0011]
[1773137494997,0.45399739,2065.3,2065.0,0.0011]
[1773137496324,0.45399739,2065.5,2065.1,0.49690287]
[1773137496498,1.66429963,2065.6,2065.1,0.49690287]
[1773137496700,0.45399739,2065.5,2065.0,0.0011]
[1773137497024,0.45399739,2065.5,2065.0,0.49800287]
[1773137499201,0.45399739,2065.5,2065.1,1.21059512]
[1773137499524,1.21023072,2065.8,2065.2,0.49690287]
[1773137499707,0.40399739,2065.7,2065.2,0.49690287]
[1773137501294,0.45399739,2065.5,2065.0,0.49800287]
[1773137501498,0.45399739,2065.5,2065.0,1.70864812]
[1773137501933,0.45399739,2065.5,2065.0,0.49800287]
[1773137502497,0.45399739,2065.3,2065.0,0.49800287]
[1773137503113,0.40399739,2065.3,2065.0,0.49800287]
[1773137503933,1.61448471,2065.3,2065.0,0.49800287]
[1773137504134,1.61448471,2065.3,2065.2,0.0011]
[1773137504431,0.45399739,2065.2,2065.0,0.0011]
[1773137505204,0.45399739,2065.2,2064.9,0.0011]
[1773137505205,0.45399739,2065.1,2064.9,0.0011]
[1773137505533,1.66459655,2065.1,2064.9,0.0011]
[1773137506339,0.45399739,2065.1,2064.9,0.0011]
[1773137506825,1.66459954,2065.1,2064.9,0.0011]
[1773137508257,0.001,2065.3,2064.9,0.47019353]
[1773137509606,0.48016933,2065.3,2064.9,0.47019353]
[1773137511458,0.48016933,2065.3,2065.0,1.67974728]
[1773137512247,0.48016933,2065.3,2065.0,0.46909353]
[1773137512752,0.48016933,2065.3,2065.0,4.30909353]
[1773137512952,0.001,2065.3,2065.0,4.30909353]
[1773137513110,0.001,2065.3,2065.1,0.46909353]
[1773137514929,0.48016933,2065.3,2065.0,3.84]
[1773137515124,0.48016933,2065.3,2065.0,3.64]
[1773137515330,0.48016933,2065.3,2064.9,0.0011]
[1773137515948,1.69065538,2065.3,2065.0,0.46909353]
[1773137516631,1.69065538,2065.3,2065.1,0.0011]
[1773137517022,0.47916933,2065.2,2065.1,0.0011]
[1773137520790,0.001,2065.3,2065.1,0.47019353]
[1773137521577,0.001,2065.3,2065.2,0.46909353]
[1773137524488,0.46447858,2065.3,2064.9,0.0011]
[1773137524639,0.46447858,2065.3,2064.9,1.21179991]
[1773137524841,0.46447858,2065.3,2065.0,0.46234737]
[1773137524842,0.001,2065.3,2065.0,0.46234737]
[1773137525979,0.001,2065.3,2065.0,4.10234737]
[1773137526780,0.46447858,2065.3,2065.0,0.46234737]
[1773137527359,0.46447858,2065.3,2064.9,1.21179991]
[1773137528514,0.46447858,2065.3,2065.1,0.0011]
[1773137530783,0.46347858,2065.2,2065.1,0.0011]
[1773137531566,0.001,2065.3,2065.1,0.0011]
[1773137531762,1.21147966,2065.3,2065.1,0.0011]
[1773137531966,0.46347858,2065.2,2065.1,0.0011]
[1773137532589,0.46447858,2065.9,2065.1,0.46344737]
[1773137532782,0.46347858,2065.7,2065.1,0.46344737]
[1773137533579,0.96347858,2065.5,2065.1,0.46344737]
[1773137533785,0.96347858,2065.5,2065.1,1.67402788]
[1773137533989,2.17384268,2065.5,2065.1,1.67402788]
[1773137534160,2.17384268,2065.5,2065.1,0.46344737]
[1773137535161,0.5,2065.5,2065.2,0.46234737]
[1773137535892,0.5,2065.5,2065.2,1.6728474]
[1773137537499,0.5,2065.5,2065.3,0.46234737]
[1773137537969,0.5,2065.5,2065.3,4.10234737]
[1773137538302,1.67374993,2065.7,2065.4,0.46234737]
[1773137539078,1.67373101,2065.7,2065.4,0.46234737]
[1773137539464,1.67372647,2065.7,2065.4,0.46234737]
[1773137539664,0.46347858,2065.7,2065.4,0.46234737]
[1773137540215,0.46347858,2065.7,2065.4,1.67275981]
[1773137540378,0.001,2065.9,2065.5,0.46234737]
[1773137540704,0.46447858,2065.9,2065.5,0.46234737]
[1773137540905,1.67460827,2065.9,2065.5,0.46234737]
[1773137541062,0.46347858,2065.8,2065.4,1.21041244]
[1773137542699,0.46347858,2065.6,2065.3,0.46234737]
[1773137542896,0.46347858,2065.7,2065.3,1.6728126]
[1773137543099,0.46347858,2065.7,2065.4,0.46234737]
[1773137543968,0.46347858,2065.8,2065.4,0.46234737]
[1773137544569,0.46347858,2065.6,2065.2,1.67286519]
[1773137544771,0.46347858,2065.6,2065.3,0.46234737]
[1773137545905,0.46347858,2065.6,2065.2,1.67286519]
[1773137546211,0.46347858,2065.6,2065.1,0.0011]
[1773137546365,0.46347858,2065.6,2065.1,0.46344737]
[1773137547001,1.67383926,2065.5,2065.1,0.46344737]
[1773137548295,0.46347858,2065.4,2065.1,0.0011]
[1773137548962,0.46347858,2065.2,2064.9,0.0011]
[1773137551088,1.67395647,2065.3,2064.9,0.46344737]
[1773137551924,0.46347858,2065.2,2064.9,0.46344737]
[1773137552620,0.46347858,2065.2,2065.1,0.0011]
[1773137553308,1.67401508,2065.2,2065.1,0.0011]
[1773137553509,0.46276093,2065.1,2064.9,0.0011]
[1773137554537,0.46276093,2065.1,2064.7,1.21192473]
[1773137554698,1.2105365,2065.2,2064.8,0.47089917]
[1773137555027,1.67329743,2065.2,2064.8,0.47089917]
[1773137555230,5.30450552,2065.4,2064.8,0.47089917]
[1773137555436,0.46276093,2065.3,2065.0,0.47089917]
[1773137556033,0.46276093,2065.3,2064.8,1.68162478]
[1773137557936,0.46276093,2065.3,2064.9,0.47089917]
[1773137557937,1.67329743,2065.2,2064.9,0.47089917]
[1773137558306,0.46276093,2065.1,2064.7,1.68281316]
[1773137558659,0.46276093,2065.3,2064.8,0.47089917]
[1773137559522,0.46276093,2065.3,2064.7,0.0011]
[1773137559840,1.67341468,2065.0,2064.7,0.0011]
[1773137560039,0.46276093,2065.0,2064.7,0.0011]
[1773137560732,0.46276093,2064.9,2064.5,1.68293857]
[1773137560932,1.67339923,2065.1,2064.6,0.47089917]
[1773137561131,0.46276093,2065.1,2064.6,0.47089917]
[1773137561640,1.67336081,2065.1,2064.6,0.47089917]
[1773137561825,1.67336081,2065.1,2064.7,1.68172883]
[1773137562028,0.46276093,2065.0,2064.7,0.47089917]
[1773137562746,0.46276093,2065.0,2064.6,0.47089917]
[1773137563656,0.46276093,2065.2,2064.6,0.47089917]
[1773137564049,0.46276093,2065.2,2064.8,0.47089917]
[1773137564941,0.46276093,2065.4,2064.8,0.47089917]
[1773137565124,0.46276093,2065.4,2064.9,0.47199917]
[1773137565459,0.001,2065.0,2064.9,0.0011]
[1773137565639,0.46376093,2065.0,2064.9,0.0011]
[1773137565959,0.001,2065.0,2064.9,0.47199917]
[1773137566156,0.001,2065.0,2064.9,1.68271155]
[1773137567265,5.30529475,2065.5,2065.0,0.47089917]
[1773137567564,1.67412161,2065.5,2065.0,0.47089917]
[1773137567732,0.46276093,2065.4,2065.0,0.47089917]
[1773137568273,1.67321043,2065.4,2065.0,0.47089917]
[1773137568560,0.46276093,2065.3,2064.9,1.21181238]
[1773137568861,0.46276093,2065.3,2064.9,1.68271155]
[1773137571364,0.46276093,2065.3,2065.0,0.47972079]
[1773137571555,0.46276093,2065.3,2064.9,0.48082079]
[1773137573692,0.49873991,2065.5,2065.1,0.47972079]
[1773137575774,0.49873991,2065.5,2065.1,1.69027188]
[1773137577406,0.49873991,2065.5,2065.1,1.69137188]
[1773137577594,0.001,2065.3,2065.1,1.69137188]
[1773137577769,0.001,2065.3,2065.2,1.69025729]
[1773137579180,0.001,2065.3,2065.2,0.47972079]
[1773137580167,0.001,2065.3,2065.1,0.0011]
[1773137580168,0.49873991,2065.3,2065.1,0.0011]
[1773137582419,0.001,2065.3,2065.1,0.48082079]
[1773137585621,0.4773937,2065.3,2065.1,0.0011]
[1773137589125,0.4773937,2065.3,2065.2,0.0011]
[1773137594539,0.001,2065.3,2065.2,0.0011]
[1773137595852,0.4773937,2065.3,2064.7,0.0011]
[1773137596138,0.4773937,2065.3,2064.4,0.0011]
[1773137596139,0.4763937,2064.7,2064.4,0.0011]
[1773137596364,0.4763937,2064.5,2064.1,0.48206385]
[1773137596525,0.4763937,2064.4,2064.1,0.48206385]
[1773137597339,0.4763937,2064.4,2064.0,2.74363021]
[1773137597844,0.4763937,2064.3,2063.9,0.48206385]
[1773137598048,1.21094707,2064.5,2063.5,0.48206385]
[1773137598049,0.4763937,2063.9,2063.5,0.48206385]
[1773137598557,0.4763937,2063.9,2063.1,1.21176869]
[1773137598558,0.4763937,2063.9,2063.2,0.48206385]
[1773137598763,0.4763937,2063.9,2063.3,1.69371508]
[1773137598764,0.4763937,2063.8,2063.3,1.69371508]
[1773137598968,0.4763937,2063.8,2063.3,0.48206385]
[1773137600062,0.4763937,2063.8,2063.1,1.69380784]
[1773137600232,0.4763937,2063.8,2063.2,0.48206385]
[1773137600669,0.4763937,2063.6,2063.2,1.69374506]
[1773137601972,0.4763937,2063.6,2063.5,0.0011]
[1773137603594,0.4763937,2063.6,2063.0,4.84831733]
[1773137603595,0.4763937,2063.5,2063.0,0.0011]
[1773137604471,1.68781008,2063.7,2063.1,0.48206385]
[1773137604653,0.4763937,2063.6,2063.1,0.48206385]
[1773137604984,0.4763937,2063.4,2063.0,0.0011]
[1773137607373,1.68800764,2063.4,2063.0,0.0011]
[1773137607870,0.4763937,2063.3,2063.0,0.0011]
[1773137608840,4.84630296,2063.5,2063.0,0.0011]
[1773137608841,0.4763937,2063.5,2063.0,0.48316385]
[1773137609843,1.21156851,2063.5,2063.0,1.69498183]
[1773137610169,0.4763937,2063.4,2063.0,0.48316385]
[1773137610371,0.42690234,2063.4,2063.0,0.48316385]
[1773137610955,0.42690234,2063.4,2063.0,1.69498842]
[1773137612366,0.4763937,2063.3,2063.0,0.0011]
[1773137612871,0.4763937,2063.3,2062.4,0.48206385]
[1773137613072,3.56160168,2063.4,2062.2,0.48206385]
[1773137613073,0.4763937,2062.7,2062.2,0.48206385]
[1773137613288,0.4763937,2062.7,2062.2,1.69435147]
[1773137613494,0.4763937,2063.0,2062.3,0.48206385]
[1773137614773,0.4763937,2063.0,2062.2,1.21228716]
[1773137614774,0.45338573,2062.8,2062.2,1.21228716]
[1773137615391,0.45338573,2062.8,2062.3,0.4526394]
[1773137615588,0.45338573,2062.8,2062.7,0.0011]
[1773137615987,0.45338573,2062.8,2062.3,0.4526394]
[1773137616699,0.45338573,2062.8,2062.2,1.21228716]
[1773137616907,0.45338573,2062.6,2062.2,0.4526394]
[1773137617486,0.45338573,2062.7,2062.2,0.4526394]
[1773137617904,0.45338573,2062.9,2062.2,0.4526394]
[1773137618409,0.45338573,2063.2,2062.3,0.4526394]
[1773137618702,0.45338573,2063.0,2062.3,0.4526394]
[1773137618914,0.45338573,2062.8,2062.4,1.21217998]
[1773137619287,0.45338573,2062.8,2062.3,1.66483269]
[1773137619789,0.45338573,2062.8,2062.4,0.4526394]
[1773137620100,4.84731974,2063.0,2062.4,0.4526394]
[1773137620101,0.45338573,2063.0,2062.4,0.4526394]
[1773137621013,0.45338573,2063.0,2062.6,0.4526394]
[1773137621181,0.45338573,2063.2,2062.6,0.4526394]
[1773137621382,1.66509726,2063.2,2062.6,0.4526394]
[1773137621792,0.45338573,2063.2,2062.6,0.4526394]
[1773137622118,1.21165275,2063.3,2062.6,0.4526394]
[1773137622618,0.45338573,2063.2,2062.6,0.4526394]
[1773137623690,0.5,2063.0,2062.6,1.66466656]
[1773137624192,0.40342288,2063.0,2062.7,0.4526394]
[1773137624396,1.66500313,2063.4,2062.7,0.4526394]
[1773137625907,1.66500313,2063.4,2062.8,1.66458432]
[1773137627216,0.45338573,2063.3,2062.8,0.0011]
[1773137627528,0.45338573,2062.9,2062.4,1.21213757]
[1773137627719,0.45338573,2062.9,2062.5,0.0011]
[1773137627928,1.66531121,2062.9,2062.5,0.0011]
[1773137628322,0.45338573,2062.8,2062.5,0.0011]
[1773137630050,1.66537837,2062.8,2062.5,0.0011]
[1773137631443,1.21189137,2062.9,2062.5,0.0011]
[1773137631636,1.66587483,2063.0,2062.5,0.0011]
[1773137632033,1.66587483,2063.0,2062.5,0.47889075]
[1773137633469,1.21181913,2063.1,2062.5,0.47889075]
[1773137633763,1.666759,2063.2,2062.5,0.47889075]
[1773137633969,0.45400103,2063.1,2062.5,0.47889075]
[1773137634176,1.66581305,2063.1,2062.6,1.68985319]
[1773137634532,0.45400103,2063.0,2062.6,1.68985319]
[1773137635673,0.45400103,2063.0,2062.6,0.47779075]
[1773137636033,0.5,2062.8,2062.6,0.47779075]
[1773137636648,0.5,2062.8,2062.6,1.68981454]
[1773137637777,0.5,2062.8,2062.6,1.21202379]
[1773137637983,0.95400103,2062.8,2062.5,0.0011]
[1773137638285,0.45400103,2062.7,2062.5,0.0011]
[1773137638634,0.40450614,2062.7,2062.5,0.0011]
[1773137639140,1.6659329,2062.9,2062.5,0.0011]
[1773137639331,0.45400103,2062.8,2062.5,0.0011]
[1773137640364,1.21193187,2062.9,2062.5,0.47889075]
[1773137640851,1.66587521,2063.0,2062.6,0.47779075]
[1773137641979,1.66671324,2063.2,2062.6,0.47779075]
[1773137642276,1.423,2063.6,2062.6,0.47779075]
[1773137642277,1.21157615,2063.5,2062.6,0.47779075]
[1773137642831,1.21157615,2063.5,2062.8,0.47779075]
[1773137643061,0.45400103,2063.4,2062.8,0.47779075]
[1773137643635,0.45400103,2063.4,2062.6,3.14757897]
[1773137644065,0.45400103,2063.4,2062.7,0.4925178]
[1773137644462,1.21157615,2063.5,2062.7,0.4925178]
[1773137644656,1.67909395,2063.5,2062.7,0.4925178]
[1773137644964,4.84570497,2063.7,2062.9,0.4925178]
[1773137645158,0.4675178,2063.6,2062.9,0.4925178]
[1773137645834,0.4675178,2063.4,2062.7,0.4925178]
[1773137646044,0.9675178,2063.4,2062.8,0.4925178]
[1773137647238,1.21165123,2063.3,2062.9,0.4925178]
[1773137647454,0.4675178,2063.6,2062.7,0.4925178]